[Event "Titled Tuesday Blitz January 03 Early 2023"]
[White "Ismagilov, Damir"]
[Black "Mikhalsky, Vladimir"]
[WhiteFideId "34199982"]
[BlackFideId "14144352"]
[WhiteElo "2156"]
[BlackElo "2219"]
[Result "0-1"]
[Round "03"]
[TimeControl "180+2"]
[Date "2023.01.03"]
[WhiteClock "0:00:01"]
[BlackClock "0:00:07"]

1. e4 {[%clk 0:03:00]}  c5 {[%clk 0:02:58]} 2. Nf3 {[%clk 0:03:00]}  Nc6 {[%clk 0:02:57]} 3. Bb5 {[%clk 0:03:00]}  g6 {[%clk 0:02:57]} 4. Bxc6 {[%clk 0:03:00]}  dxc6 {[%clk 0:02:56]} 5. O-O {[%clk 0:03:00]}  Bg7 {[%clk 0:02:57]} 6. d3 {[%clk 0:02:59]}  e5 {[%clk 0:02:57]} 7. a4 {[%clk 0:02:43]}  a5 {[%clk 0:02:50]} 8. h3 {[%clk 0:02:42]}  Ne7 {[%clk 0:02:43]} 9. Be3 {[%clk 0:02:38]}  b6 {[%clk 0:02:43]} 10. Na3 {[%clk 0:02:36]}  f5 {[%clk 0:02:33]} 11. exf5 {[%clk 0:02:31]}  gxf5 {[%clk 0:02:33]} 12. Nc4 {[%clk 0:02:28]}  Ng6 {[%clk 0:02:31]} 13. Bg5 {[%clk 0:02:10]}  Qc7 {[%clk 0:02:30]} 14. Qc1 {[%clk 0:02:01]}  f4 {[%clk 0:02:16]} 15. Re1 {[%clk 0:01:54]}  O-O {[%clk 0:02:13]} 16. h4 {[%clk 0:01:45]}  Bg4 {[%clk 0:02:01]} 17. Nh2 {[%clk 0:01:34]}  Bh5 {[%clk 0:02:01]} 18. g4 {[%clk 0:01:25]}  fxg3 {[%clk 0:02:01]} 19. fxg3 {[%clk 0:01:26]}  e4 {[%clk 0:01:57]} 20. Kg2 {[%clk 0:00:46]}  Bf3+ {[%clk 0:01:40]} 21. Kh3 {[%clk 0:00:26]}  Qd7+ {[%clk 0:01:25]} 22. g4 {[%clk 0:00:27]}  h5 {[%clk 0:01:24]} 23. Ne3 {[%clk 0:00:20]}  Nf4+ {[%clk 0:01:16]} 24. Bxf4 {[%clk 0:00:20]}  Rxf4 {[%clk 0:01:15]} 25. Rg1 {[%clk 0:00:11]}  exd3 {[%clk 0:01:06]} 26. cxd3 {[%clk 0:00:10]}  Qxd3 {[%clk 0:01:04]} 27. Rg3 {[%clk 0:00:06]}  Qd7 {[%clk 0:01:01]} 28. Nxf3 {[%clk 0:00:03]}  Raf8 {[%clk 0:00:41]} 29. Qg1 {[%clk 0:00:04]}  Rxf3 {[%clk 0:00:41]} 30. Nf5 {[%clk 0:00:03]}  hxg4+ {[%clk 0:00:33]} 31. Kh2 {[%clk 0:00:02]}  Qxf5 {[%clk 0:00:32]} 32. Rxg4 {[%clk 0:00:02]}  Rf2+ {[%clk 0:00:30]} 33. Rg2 {[%clk 0:00:01]}  Qf4+ {[%clk 0:00:27]} 34. Kh1 {[%clk 0:00:01]}  Qxh4+ {[%clk 0:00:27]} 35. Qh2 {[%clk 0:00:02]}  Qxh2+ {[%clk 0:00:25]} 36. Kxh2 {[%clk 0:00:02]}  Rxg2+ {[%clk 0:00:25]} 37. Kxg2 {[%clk 0:00:03]}  Bxb2 {[%clk 0:00:25]} 38. Rb1 {[%clk 0:00:04]}  Bc3 {[%clk 0:00:20]} 39. Rxb6 {[%clk 0:00:05]}  Rf4 {[%clk 0:00:19]} 40. Rxc6 {[%clk 0:00:05]}  Rxa4 {[%clk 0:00:19]} 41. Rxc5 {[%clk 0:00:06]}  Bb4 {[%clk 0:00:19]} 42. Rc4 {[%clk 0:00:06]}  Ra1 {[%clk 0:00:18]} 43. Kf3 {[%clk 0:00:07]}  Re1 {[%clk 0:00:18]} 44. Kf2 {[%clk 0:00:07]}  Re8 {[%clk 0:00:18]} 45. Rc6 {[%clk 0:00:06]}  Kf7 {[%clk 0:00:18]} 46. Ra6 {[%clk 0:00:05]}  Ke7 {[%clk 0:00:17]} 47. Ke3 {[%clk 0:00:06]}  Kd7+ {[%clk 0:00:18]} 48. Kd3 {[%clk 0:00:06]}  Kc7 {[%clk 0:00:18]} 49. Kc2 {[%clk 0:00:07]}  Kb7 {[%clk 0:00:18]} 50. Rh6 {[%clk 0:00:07]}  Rc8+ {[%clk 0:00:17]} 51. Kb2 {[%clk 0:00:07]}  Rc3 {[%clk 0:00:16]} 52. Rg6 {[%clk 0:00:07]}  Rf3 {[%clk 0:00:15]} 53. Rh6 {[%clk 0:00:07]}  a4 {[%clk 0:00:16]} 54. Rg6 {[%clk 0:00:03]}  a3+ {[%clk 0:00:16]} 55. Ka2 {[%clk 0:00:04]}  Kc7 {[%clk 0:00:13]} 56. Rh6 {[%clk 0:00:03]}  Bd6 {[%clk 0:00:14]} 57. Rh4 {[%clk 0:00:02]}  Kc6 {[%clk 0:00:13]} 58. Rh5 {[%clk 0:00:02]}  Bc5 {[%clk 0:00:13]} 59. Rh8 {[%clk 0:00:03]}  Kb5 {[%clk 0:00:13]} 60. Rb8+ {[%clk 0:00:03]}  Kc4 {[%clk 0:00:13]} 61. Rc8 {[%clk 0:00:01]}  Rf2+ {[%clk 0:00:13]} 62. Kb1 {[%clk 0:00:02]}  Kb3 {[%clk 0:00:11]} 63. Rb8+ {[%clk 0:00:02]}  Bb4 {[%clk 0:00:11]} 64. Rf8 {[%clk 0:00:02]}  Rxf8 {[%clk 0:00:08]} 65. Kc1 {[%clk 0:00:02]}  Rd8 {[%clk 0:00:07]} 66. Kb1 {[%clk 0:00:02]}  a2+ {[%clk 0:00:07]} 67. Ka1 {[%clk 0:00:01]}  Bc3# {[%clk 0:00:07]} 0-1


[Site "https://www.chess.com"]

[Event "Titled Tuesday Blitz January 03 Early 2023"]
[White "Khoroshev, Nikita"]
[Black "Moreno Perez, Tobias Sebastian"]
[WhiteFideId "14200287"]
[BlackFideId "186716"]
[WhiteElo "2336"]
[BlackElo "2256"]
[Result "1-0"]
[Round "03"]
[TimeControl "180+2"]
[Date "2023.01.03"]
[WhiteClock "0:00:13"]
[BlackClock "0:00:06"]

1. e4 {[%clk 0:02:59]}  c6 {[%clk 0:03:00]} 2. Nf3 {[%clk 0:02:54]}  d5 {[%clk 0:03:00]} 3. Nc3 {[%clk 0:02:54]}  Bg4 {[%clk 0:02:58]} 4. h3 {[%clk 0:02:54]}  Bxf3 {[%clk 0:02:57]} 5. Qxf3 {[%clk 0:02:55]}  e6 {[%clk 0:02:58]} 6. d4 {[%clk 0:02:53]}  Nd7 {[%clk 0:02:56]} 7. a3 {[%clk 0:02:51]}  dxe4 {[%clk 0:02:56]} 8. Qxe4 {[%clk 0:02:49]}  Ngf6 {[%clk 0:02:55]} 9. Qd3 {[%clk 0:02:41]}  Bd6 {[%clk 0:02:54]} 10. g3 {[%clk 0:02:37]}  O-O {[%clk 0:02:53]} 11. Bg2 {[%clk 0:02:38]}  e5 {[%clk 0:02:51]} 12. O-O {[%clk 0:02:37]}  exd4 {[%clk 0:02:44]} 13. Qxd4 {[%clk 0:02:36]}  Qc7 {[%clk 0:02:33]} 14. Rd1 {[%clk 0:02:24]}  Be5 {[%clk 0:02:32]} 15. Qb4 {[%clk 0:01:58]}  Rad8 {[%clk 0:02:21]} 16. Be3 {[%clk 0:01:56]}  Nb6 {[%clk 0:02:21]} 17. Qb3 {[%clk 0:01:36]}  Rxd1+ {[%clk 0:02:09]} 18. Rxd1 {[%clk 0:01:35]}  Rd8 {[%clk 0:02:09]} 19. Bf3 {[%clk 0:01:09]}  Rxd1+ {[%clk 0:01:58]} 20. Nxd1 {[%clk 0:01:07]}  Bxg3 {[%clk 0:01:39]} 21. Bxb6 {[%clk 0:00:35]}  Bh2+ {[%clk 0:01:38]} 22. Kg2 {[%clk 0:00:33]}  axb6 {[%clk 0:01:38]} 23. Ne3 {[%clk 0:00:32]}  b5 {[%clk 0:01:30]} 24. a4 {[%clk 0:00:31]}  bxa4 {[%clk 0:01:15]} 25. Qxa4 {[%clk 0:00:32]}  g6 {[%clk 0:01:15]} 26. Qa8+ {[%clk 0:00:20]}  Kg7 {[%clk 0:01:14]} 27. b4 {[%clk 0:00:20]}  Bd6 {[%clk 0:01:12]} 28. b5 {[%clk 0:00:20]}  cxb5 {[%clk 0:00:59]} 29. Qxb7 {[%clk 0:00:20]}  Qxb7 {[%clk 0:00:36]} 30. Bxb7 {[%clk 0:00:21]}  Bc5 {[%clk 0:00:36]} 31. Ng4 {[%clk 0:00:17]}  Nh5 {[%clk 0:00:32]} 32. Kf3 {[%clk 0:00:17]}  Bd4 {[%clk 0:00:27]} 33. Ba6 {[%clk 0:00:15]}  b4 {[%clk 0:00:27]} 34. Bc4 {[%clk 0:00:15]}  f5 {[%clk 0:00:26]} 35. Nh2 {[%clk 0:00:15]}  Nf6 {[%clk 0:00:25]} 36. Bd3 {[%clk 0:00:14]}  Nd7 {[%clk 0:00:24]} 37. Nf1 {[%clk 0:00:14]}  Ne5+ {[%clk 0:00:24]} 38. Ke2 {[%clk 0:00:12]}  Nxd3 {[%clk 0:00:24]} 39. Kxd3 {[%clk 0:00:12]}  Bxf2 {[%clk 0:00:24]} 40. Kc4 {[%clk 0:00:12]}  Be1 {[%clk 0:00:24]} 41. Ne3 {[%clk 0:00:13]}  f4 {[%clk 0:00:23]} 42. Ng2 {[%clk 0:00:11]}  f3 {[%clk 0:00:22]} 43. Ne3 {[%clk 0:00:10]}  g5 {[%clk 0:00:20]} 44. Kd3 {[%clk 0:00:09]}  h5 {[%clk 0:00:20]} 45. Ke4 {[%clk 0:00:09]}  Bd2 {[%clk 0:00:11]} 46. Nf1 {[%clk 0:00:09]}  Bc1 {[%clk 0:00:09]} 47. Kxf3 {[%clk 0:00:09]}  Kf6 {[%clk 0:00:10]} 48. Ng3 {[%clk 0:00:09]}  Kg6 {[%clk 0:00:09]} 49. Ke4 {[%clk 0:00:09]}  Bf4 {[%clk 0:00:08]} 50. Ne2 {[%clk 0:00:08]}  Bd6 {[%clk 0:00:08]} 51. Nd4 {[%clk 0:00:07]}  g4 {[%clk 0:00:07]} 52. hxg4 {[%clk 0:00:08]}  hxg4 {[%clk 0:00:08]} 53. Nf5 {[%clk 0:00:08]}  Bc7 {[%clk 0:00:06]} 54. Ne7+ {[%clk 0:00:08]}  Kg5 {[%clk 0:00:05]} 55. Nd5 {[%clk 0:00:09]}  Bd6 {[%clk 0:00:05]} 56. Ne3 {[%clk 0:00:08]}  Bf8 {[%clk 0:00:04]} 57. Ng2 {[%clk 0:00:08]}  g3 {[%clk 0:00:02]} 58. Kf3 {[%clk 0:00:08]}  Bd6 {[%clk 0:00:02]} 59. Ne3 {[%clk 0:00:08]}  Kh4 {[%clk 0:00:03]} 60. Nf5+ {[%clk 0:00:08]}  Kh3 {[%clk 0:00:03]} 61. Ne3 {[%clk 0:00:06]}  Bc5 {[%clk 0:00:03]} 62. Ng2 {[%clk 0:00:07]}  Bb6 {[%clk 0:00:03]} 63. Nf4+ {[%clk 0:00:07]}  Kh2 {[%clk 0:00:03]} 64. Ng2 {[%clk 0:00:08]}  Bc7 {[%clk 0:00:03]} 65. Ne3 {[%clk 0:00:08]}  Be5 {[%clk 0:00:03]} 66. Ng4+ {[%clk 0:00:08]}  Kh3 {[%clk 0:00:02]} 67. Nxe5 {[%clk 0:00:08]}  g2 {[%clk 0:00:02]} 68. Kf2 {[%clk 0:00:09]}  Kh2 {[%clk 0:00:02]} 69. Nf3+ {[%clk 0:00:09]}  Kh1 {[%clk 0:00:03]} 70. Ng1 {[%clk 0:00:09]}  Kh2 {[%clk 0:00:03]} 71. Ne2 {[%clk 0:00:10]}  Kh1 {[%clk 0:00:04]} 72. Ke3 {[%clk 0:00:10]}  g1=Q+ {[%clk 0:00:01]} 73. Nxg1 {[%clk 0:00:10]}  Kxg1 {[%clk 0:00:02]} 74. Kd3 {[%clk 0:00:11]}  Kf2 {[%clk 0:00:03]} 75. Kc4 {[%clk 0:00:11]}  Ke3 {[%clk 0:00:04]} 76. Kxb4 {[%clk 0:00:12]}  Kd4 {[%clk 0:00:04]} 77. c4 {[%clk 0:00:13]}  Ke5 {[%clk 0:00:05]} 78. Kb5 {[%clk 0:00:13]}  Kd6 {[%clk 0:00:05]} 79. Kb6 {[%clk 0:00:13]}  Kd7 {[%clk 0:00:05]} 80. c5 {[%clk 0:00:13]}  Kc8 {[%clk 0:00:06]} 81. Kc6 {[%clk 0:00:13]} 1-0


[Site "https://www.chess.com"]

[Event "Titled Tuesday Blitz January 03 Early 2023"]
[White "Krienke, Makaio"]
[Black "Odegov, Artem"]
[WhiteFideId "2038854"]
[BlackFideId "34183644"]
[WhiteElo "2115"]
[BlackElo "2261"]
[Result "1-0"]
[Round "03"]
[TimeControl "180+2"]
[Date "2023.01.03"]
[WhiteClock "0:01:29"]
[BlackClock "0:00:05"]

1. e4 {[%clk 0:03:00]}  e6 {[%clk 0:02:59]} 2. d4 {[%clk 0:02:59]}  d5 {[%clk 0:03:00]} 3. Nc3 {[%clk 0:03:00]}  Bb4 {[%clk 0:02:59]} 4. e5 {[%clk 0:02:58]}  c5 {[%clk 0:02:59]} 5. a3 {[%clk 0:02:58]}  Bxc3+ {[%clk 0:03:00]} 6. bxc3 {[%clk 0:02:59]}  Ne7 {[%clk 0:03:01]} 7. Qg4 {[%clk 0:02:59]}  cxd4 {[%clk 0:03:00]} 8. cxd4 {[%clk 0:02:49]}  Qc7 {[%clk 0:02:59]} 9. Bd2 {[%clk 0:02:43]}  Nbc6 {[%clk 0:02:48]} 10. Bd3 {[%clk 0:02:41]}  Bd7 {[%clk 0:02:36]} 11. Ne2 {[%clk 0:02:25]}  O-O-O {[%clk 0:02:35]} 12. O-O {[%clk 0:02:25]}  f6 {[%clk 0:02:31]} 13. f4 {[%clk 0:02:22]}  f5 {[%clk 0:02:19]} 14. Qf3 {[%clk 0:02:19]}  h6 {[%clk 0:02:16]} 15. c4 {[%clk 0:02:18]}  dxc4 {[%clk 0:02:17]} 16. Bxc4 {[%clk 0:02:18]}  g5 {[%clk 0:02:16]} 17. Rfc1 {[%clk 0:02:14]}  gxf4 {[%clk 0:02:13]} 18. Bxf4 {[%clk 0:02:04]}  Qa5 {[%clk 0:02:02]} 19. Qb3 {[%clk 0:01:54]}  Nd5 {[%clk 0:01:47]} 20. Rab1 {[%clk 0:01:51]}  Nb6 {[%clk 0:01:14]} 21. Bxe6 {[%clk 0:01:45]}  Bxe6 {[%clk 0:01:15]} 22. Qxe6+ {[%clk 0:01:43]}  Kb8 {[%clk 0:01:15]} 23. Rxc6 {[%clk 0:01:40]}  bxc6 {[%clk 0:01:16]} 24. Qxc6 {[%clk 0:01:40]}  Rxd4 {[%clk 0:00:19]} 25. Nxd4 {[%clk 0:01:33]}  Qd2 {[%clk 0:00:11]} 26. Bxd2 {[%clk 0:01:32]}  Re8 {[%clk 0:00:09]} 27. Bf4 {[%clk 0:01:28]}  Re6 {[%clk 0:00:07]} 28. Nxe6 {[%clk 0:01:27]}  h5 {[%clk 0:00:05]} 29. Qc7+ {[%clk 0:01:27]}  Ka8 {[%clk 0:00:05]} 30. Qc8+ {[%clk 0:01:28]}  Nxc8 {[%clk 0:00:05]} 31. Nc7# {[%clk 0:01:29]} 1-0


[Site "https://www.chess.com"]

[Event "Titled Tuesday Blitz January 03 Early 2023"]
[White "Vysochin, Spartak"]
[Black "Maltsevskaya, Aleksandra"]
[WhiteFideId "14103516"]
[BlackFideId "24174041"]
[WhiteElo "2512"]
[BlackElo "2390"]
[Result "1-0"]
[Round "03"]
[TimeControl "180+2"]
[Date "2023.01.03"]
[WhiteClock "0:01:18"]
[BlackClock "0:01:16"]

1. e4 {[%clk 0:02:57]}  c6 {[%clk 0:02:55]} 2. d4 {[%clk 0:02:56]}  d5 {[%clk 0:02:54]} 3. exd5 {[%clk 0:02:56]}  cxd5 {[%clk 0:02:54]} 4. Bd3 {[%clk 0:02:56]}  Nc6 {[%clk 0:02:54]} 5. c3 {[%clk 0:02:56]}  Qc7 {[%clk 0:02:54]} 6. h3 {[%clk 0:02:54]}  e5 {[%clk 0:02:53]} 7. dxe5 {[%clk 0:02:53]}  Nxe5 {[%clk 0:02:54]} 8. Nf3 {[%clk 0:02:53]}  Nf6 {[%clk 0:02:53]} 9. O-O {[%clk 0:02:50]}  Bd6 {[%clk 0:02:47]} 10. Bg5 {[%clk 0:02:45]}  Be6 {[%clk 0:02:38]} 11. Bxf6 {[%clk 0:02:43]}  gxf6 {[%clk 0:02:36]} 12. Nd4 {[%clk 0:02:34]}  O-O-O {[%clk 0:02:32]} 13. Bf5 {[%clk 0:02:20]}  Bxf5 {[%clk 0:02:27]} 14. Nxf5 {[%clk 0:02:20]}  Rhg8 {[%clk 0:02:28]} 15. Nd2 {[%clk 0:02:10]}  Rg5 {[%clk 0:02:27]} 16. Nxd6+ {[%clk 0:02:04]}  Qxd6 {[%clk 0:02:25]} 17. f4 {[%clk 0:02:03]}  Qb6+ {[%clk 0:01:19]} 18. Kh1 {[%clk 0:01:57]}  Rxg2 {[%clk 0:01:19]} 19. Kxg2 {[%clk 0:01:51]}  Rg8+ {[%clk 0:01:18]} 20. Kh2 {[%clk 0:01:22]}  Qe3 {[%clk 0:01:16]} 21. Qe1 {[%clk 0:01:18]} 1-0


[Site "https://www.chess.com"]

[Event "Titled Tuesday Blitz January 03 Early 2023"]
[White "Gnechko, Ruslan"]
[Black "Aloma Vidal, Robert"]
[WhiteFideId "14135868"]
[BlackFideId "2260409"]
[WhiteElo "2132"]
[BlackElo "2442"]
[Result "0-1"]
[Round "03"]
[TimeControl "180+2"]
[Date "2023.01.03"]
[WhiteClock "0:00:46"]
[BlackClock "0:00:15"]

1. d4 {[%clk 0:02:55]}  d5 {[%clk 0:02:59]} 2. c4 {[%clk 0:02:54]}  c6 {[%clk 0:03:00]} 3. Nf3 {[%clk 0:02:53]}  Nf6 {[%clk 0:03:00]} 4. e3 {[%clk 0:02:54]}  e6 {[%clk 0:03:01]} 5. Nbd2 {[%clk 0:02:51]}  Nbd7 {[%clk 0:03:01]} 6. Bd3 {[%clk 0:02:51]}  b6 {[%clk 0:02:54]} 7. O-O {[%clk 0:02:50]}  Bb7 {[%clk 0:02:52]} 8. b3 {[%clk 0:02:49]}  c5 {[%clk 0:02:42]} 9. cxd5 {[%clk 0:02:47]}  exd5 {[%clk 0:02:40]} 10. Bb2 {[%clk 0:02:45]}  Be7 {[%clk 0:02:37]} 11. Qe2 {[%clk 0:02:41]}  O-O {[%clk 0:02:37]} 12. Rfd1 {[%clk 0:02:39]}  Re8 {[%clk 0:02:37]} 13. Ne5 {[%clk 0:02:38]}  Nxe5 {[%clk 0:02:02]} 14. dxe5 {[%clk 0:02:37]}  Nd7 {[%clk 0:02:02]} 15. f4 {[%clk 0:02:35]}  Bf8 {[%clk 0:01:43]} 16. Nf3 {[%clk 0:01:57]}  f6 {[%clk 0:01:42]} 17. exf6 {[%clk 0:01:52]}  Nxf6 {[%clk 0:01:42]} 18. Ne5 {[%clk 0:01:53]}  g6 {[%clk 0:01:34]} 19. Qf2 {[%clk 0:01:48]}  Bg7 {[%clk 0:01:32]} 20. Bb5 {[%clk 0:01:44]}  Rf8 {[%clk 0:01:30]} 21. Qh4 {[%clk 0:01:25]}  a6 {[%clk 0:01:24]} 22. Bc6 {[%clk 0:01:20]}  Bxc6 {[%clk 0:01:15]} 23. Nxc6 {[%clk 0:01:19]}  Qe8 {[%clk 0:01:12]} 24. Ne5 {[%clk 0:01:12]}  b5 {[%clk 0:00:46]} 25. Rac1 {[%clk 0:01:11]}  Rc8 {[%clk 0:00:45]} 26. Ba3 {[%clk 0:01:09]}  b4 {[%clk 0:00:44]} 27. Bb2 {[%clk 0:01:10]}  a5 {[%clk 0:00:45]} 28. h3 {[%clk 0:01:05]}  Qe6 {[%clk 0:00:45]} 29. Rd3 {[%clk 0:00:58]}  c4 {[%clk 0:00:43]} 30. bxc4 {[%clk 0:00:51]}  dxc4 {[%clk 0:00:44]} 31. f5 {[%clk 0:00:50]}  Qxf5 {[%clk 0:00:37]} 32. Rxc4 {[%clk 0:00:50]}  g5 {[%clk 0:00:24]} 33. Qd4 {[%clk 0:00:45]}  h6 {[%clk 0:00:17]} 34. Rxc8 {[%clk 0:00:44]}  Rxc8 {[%clk 0:00:17]} 35. Nd7 {[%clk 0:00:44]}  Qxd7 {[%clk 0:00:15]} 36. Qxd7 {[%clk 0:00:44]}  Nxd7 {[%clk 0:00:15]} 37. Bxg7 {[%clk 0:00:45]}  Nc5 {[%clk 0:00:15]} 38. Rd7 {[%clk 0:00:46]}  Nxd7 {[%clk 0:00:15]} 0-1


[Site "https://www.chess.com"]

[Event "Titled Tuesday Blitz January 03 Early 2023"]
[White "reevecanada"]
[Black "Sourath Biswas"]
[BlackFideId "35091484"]
[WhiteElo "2477"]
[BlackElo "2281"]
[Result "1/2-1/2"]
[Round "03"]
[TimeControl "180+2"]
[Date "2023.01.03"]
[WhiteClock "0:00:10"]
[BlackClock "0:00:05"]

1. e4 {[%clk 0:03:00]}  c6 {[%clk 0:02:59]} 2. d4 {[%clk 0:02:58]}  d5 {[%clk 0:03:00]} 3. exd5 {[%clk 0:02:57]}  cxd5 {[%clk 0:03:01]} 4. Nf3 {[%clk 0:02:58]}  Nc6 {[%clk 0:03:01]} 5. Bb5 {[%clk 0:02:58]}  Bd7 {[%clk 0:02:58]} 6. O-O {[%clk 0:02:57]}  Nf6 {[%clk 0:02:59]} 7. Re1 {[%clk 0:02:57]}  e6 {[%clk 0:02:59]} 8. c4 {[%clk 0:02:57]}  Bd6 {[%clk 0:02:56]} 9. Bg5 {[%clk 0:02:55]}  O-O {[%clk 0:02:51]} 10. Nc3 {[%clk 0:02:51]}  dxc4 {[%clk 0:02:50]} 11. d5 {[%clk 0:02:47]}  Nb4 {[%clk 0:02:38]} 12. Bxf6 {[%clk 0:02:32]}  gxf6 {[%clk 0:02:39]} 13. Bxd7 {[%clk 0:02:28]}  Qxd7 {[%clk 0:02:38]} 14. Ne4 {[%clk 0:02:26]}  Be7 {[%clk 0:02:18]} 15. d6 {[%clk 0:02:24]}  Bd8 {[%clk 0:02:13]} 16. Qd4 {[%clk 0:02:17]}  Nd5 {[%clk 0:02:03]} 17. Qxc4 {[%clk 0:02:10]}  f5 {[%clk 0:01:54]} 18. Neg5 {[%clk 0:02:08]}  h6 {[%clk 0:01:13]} 19. Nh3 {[%clk 0:01:39]}  Qxd6 {[%clk 0:01:12]} 20. Rad1 {[%clk 0:01:36]}  Bf6 {[%clk 0:01:12]} 21. Nd4 {[%clk 0:01:28]}  Qb4 {[%clk 0:01:04]} 22. Qd3 {[%clk 0:00:57]}  Rad8 {[%clk 0:00:53]} 23. Qg3+ {[%clk 0:00:37]}  Kh7 {[%clk 0:00:52]} 24. Ne2 {[%clk 0:00:34]}  Rg8 {[%clk 0:00:50]} 25. Qf3 {[%clk 0:00:34]}  Qg4 {[%clk 0:00:48]} 26. Qxg4 {[%clk 0:00:23]}  fxg4 {[%clk 0:00:48]} 27. Nhf4 {[%clk 0:00:24]}  Nxf4 {[%clk 0:00:47]} 28. Nxf4 {[%clk 0:00:25]}  Bxb2 {[%clk 0:00:45]} 29. Rb1 {[%clk 0:00:25]}  Bc3 {[%clk 0:00:42]} 30. Rf1 {[%clk 0:00:20]}  Rd7 {[%clk 0:00:41]} 31. g3 {[%clk 0:00:20]}  Be5 {[%clk 0:00:40]} 32. Ne2 {[%clk 0:00:19]}  Rc8 {[%clk 0:00:41]} 33. Kg2 {[%clk 0:00:20]}  Rc2 {[%clk 0:00:41]} 34. Ng1 {[%clk 0:00:19]}  Rxa2 {[%clk 0:00:40]} 35. Rb4 {[%clk 0:00:20]}  f5 {[%clk 0:00:40]} 36. Rb3 {[%clk 0:00:19]}  Rdd2 {[%clk 0:00:40]} 37. Rxb7+ {[%clk 0:00:16]}  Kg6 {[%clk 0:00:40]} 38. h3 {[%clk 0:00:13]}  Bd4 {[%clk 0:00:40]} 39. hxg4 {[%clk 0:00:13]}  Rxf2+ {[%clk 0:00:40]} 40. Rxf2 {[%clk 0:00:13]}  Rxf2+ {[%clk 0:00:40]} 41. Kh3 {[%clk 0:00:14]}  fxg4+ {[%clk 0:00:32]} 42. Kxg4 {[%clk 0:00:15]}  Rf1 {[%clk 0:00:31]} 43. Nf3 {[%clk 0:00:14]}  h5+ {[%clk 0:00:31]} 44. Kf4 {[%clk 0:00:15]}  Bb6 {[%clk 0:00:20]} 45. Ke4 {[%clk 0:00:13]}  Kf6 {[%clk 0:00:14]} 46. Rh7 {[%clk 0:00:12]}  Kg6 {[%clk 0:00:09]} 47. Rb7 {[%clk 0:00:11]}  Rb1 {[%clk 0:00:04]} 48. Ne5+ {[%clk 0:00:10]}  Kg5 {[%clk 0:00:04]} 49. Rg7+ {[%clk 0:00:10]}  Kh6 {[%clk 0:00:04]} 50. Rg6+ {[%clk 0:00:10]}  Kh7 {[%clk 0:00:05]} 51. Rxe6 {[%clk 0:00:11]}  Re1+ {[%clk 0:00:05]} 52. Kf5 {[%clk 0:00:11]}  Bd4 {[%clk 0:00:05]} 53. Re7+ {[%clk 0:00:11]}  Kg8 {[%clk 0:00:06]} 54. Re8+ {[%clk 0:00:11]}  Kg7 {[%clk 0:00:06]} 55. Re7+ {[%clk 0:00:10]}  Kg8 {[%clk 0:00:05]} 56. Re8+ {[%clk 0:00:10]}  Kh7 {[%clk 0:00:05]} 57. Re7+ {[%clk 0:00:10]}  Kg8 {[%clk 0:00:05]} 1/2-1/2


[Site "https://www.chess.com"]

[Event "Titled Tuesday Blitz January 03 Early 2023"]
[White "Ljukin, Sergei"]
[Black "Jakubowski, Krzysztof"]
[WhiteFideId "14102200"]
[BlackFideId "1112848"]
[WhiteElo "2362"]
[BlackElo "2486"]
[Result "0-1"]
[Round "03"]
[TimeControl "180+2"]
[Date "2023.01.03"]
[WhiteClock "0:01:04"]
[BlackClock "0:01:51"]

1. e4 {[%clk 0:02:53]}  c5 {[%clk 0:02:59]} 2. Nf3 {[%clk 0:02:51]}  d6 {[%clk 0:02:59]} 3. d4 {[%clk 0:02:52]}  cxd4 {[%clk 0:02:59]} 4. Nxd4 {[%clk 0:02:52]}  Nf6 {[%clk 0:03:00]} 5. Nc3 {[%clk 0:02:53]}  a6 {[%clk 0:03:00]} 6. Bg5 {[%clk 0:02:53]}  e6 {[%clk 0:03:00]} 7. f4 {[%clk 0:02:53]}  h6 {[%clk 0:03:00]} 8. Bh4 {[%clk 0:02:53]}  Qb6 {[%clk 0:02:59]} 9. a3 {[%clk 0:02:53]}  Nbd7 {[%clk 0:02:59]} 10. Bf2 {[%clk 0:02:52]}  Qc7 {[%clk 0:02:59]} 11. Qe2 {[%clk 0:02:52]}  b5 {[%clk 0:02:58]} 12. O-O-O {[%clk 0:02:52]}  Be7 {[%clk 0:02:53]} 13. g4 {[%clk 0:02:52]}  Rb8 {[%clk 0:02:52]} 14. h4 {[%clk 0:02:48]}  b4 {[%clk 0:02:52]} 15. axb4 {[%clk 0:02:47]}  Rxb4 {[%clk 0:02:52]} 16. g5 {[%clk 0:02:40]}  hxg5 {[%clk 0:02:52]} 17. fxg5 {[%clk 0:02:40]}  Nh5 {[%clk 0:02:52]} 18. g6 {[%clk 0:02:40]}  Ne5 {[%clk 0:02:49]} 19. gxf7+ {[%clk 0:02:40]}  Kxf7 {[%clk 0:02:49]} 20. Bh3 {[%clk 0:02:29]}  Nf4 {[%clk 0:02:31]} 21. Qf1 {[%clk 0:02:23]}  Bf6 {[%clk 0:02:29]} 22. Bg3 {[%clk 0:02:08]}  Nxh3 {[%clk 0:02:27]} 23. Rxh3 {[%clk 0:02:06]}  Nc4 {[%clk 0:02:26]} 24. e5 {[%clk 0:01:59]}  dxe5 {[%clk 0:02:25]} 25. Nb3 {[%clk 0:01:59]}  Ne3 {[%clk 0:02:23]} 26. Qe2 {[%clk 0:01:54]}  Nxd1 {[%clk 0:02:22]} 27. Qxd1 {[%clk 0:01:54]}  Bb7 {[%clk 0:02:15]} 28. Rh2 {[%clk 0:01:36]}  Bc6 {[%clk 0:02:03]} 29. Rf2 {[%clk 0:01:35]}  Qe7 {[%clk 0:02:00]} 30. Bxe5 {[%clk 0:01:26]}  Rbxh4 {[%clk 0:01:59]} 31. Bd6 {[%clk 0:01:17]}  Qd8 {[%clk 0:01:51]} 32. Rf1 {[%clk 0:01:04]}  Rh1 {[%clk 0:01:51]} 0-1


[Site "https://www.chess.com"]

[Event "Titled Tuesday Blitz January 03 Early 2023"]
[White "Estrada Nieto, Julian"]
[Black "Sargsyan, Anna M."]
[WhiteFideId "5101018"]
[BlackFideId "13308130"]
[WhiteElo "2215"]
[BlackElo "2375"]
[Result "0-1"]
[Round "03"]
[TimeControl "180+2"]
[Date "2023.01.03"]
[WhiteClock "0:00:04"]
[BlackClock "0:00:20"]

1. e4 {[%clk 0:03:00]}  c6 {[%clk 0:02:44]} 2. d4 {[%clk 0:02:59]}  d5 {[%clk 0:02:45]} 3. Nc3 {[%clk 0:02:56]}  dxe4 {[%clk 0:02:45]} 4. Nxe4 {[%clk 0:02:57]}  Nd7 {[%clk 0:02:45]} 5. Ng5 {[%clk 0:02:47]}  Ngf6 {[%clk 0:02:43]} 6. Bd3 {[%clk 0:02:47]}  e5 {[%clk 0:02:42]} 7. Qe2 {[%clk 0:02:11]}  Be7 {[%clk 0:02:36]} 8. dxe5 {[%clk 0:02:08]}  Qa5+ {[%clk 0:02:35]} 9. Bd2 {[%clk 0:02:04]}  Qxe5 {[%clk 0:02:35]} 10. O-O-O {[%clk 0:01:49]}  O-O {[%clk 0:02:29]} 11. Re1 {[%clk 0:01:31]}  Qxe2 {[%clk 0:02:23]} 12. Rxe2 {[%clk 0:01:31]}  Bd6 {[%clk 0:02:18]} 13. N1f3 {[%clk 0:01:22]}  Nc5 {[%clk 0:02:15]} 14. Bc4 {[%clk 0:01:11]}  h6 {[%clk 0:02:07]} 15. Nh3 {[%clk 0:01:10]}  g5 {[%clk 0:01:36]} 16. Ne5 {[%clk 0:01:03]}  Nce4 {[%clk 0:01:22]} 17. Nxf7 {[%clk 0:00:49]}  Rxf7 {[%clk 0:00:58]} 18. Bxf7+ {[%clk 0:00:49]}  Kxf7 {[%clk 0:00:59]} 19. Rhe1 {[%clk 0:00:37]}  Nxd2 {[%clk 0:00:54]} 20. Rxd2 {[%clk 0:00:35]}  Bxh3 {[%clk 0:00:42]} 21. Rxd6 {[%clk 0:00:34]}  Bxg2 {[%clk 0:00:40]} 22. Ree6 {[%clk 0:00:19]}  Ne4 {[%clk 0:00:38]} 23. Rxh6 {[%clk 0:00:11]}  Nxd6 {[%clk 0:00:36]} 24. Rxd6 {[%clk 0:00:12]}  Re8 {[%clk 0:00:34]} 25. Kd2 {[%clk 0:00:11]}  Bd5 {[%clk 0:00:32]} 26. b3 {[%clk 0:00:09]}  Be6 {[%clk 0:00:21]} 27. c4 {[%clk 0:00:06]}  Ke7 {[%clk 0:00:21]} 28. Rd4 {[%clk 0:00:06]}  Rd8 {[%clk 0:00:21]} 29. Rxd8 {[%clk 0:00:05]}  Kxd8 {[%clk 0:00:22]} 30. Ke3 {[%clk 0:00:06]}  Ke7 {[%clk 0:00:22]} 31. f4 {[%clk 0:00:06]}  g4 {[%clk 0:00:21]} 32. Ke4 {[%clk 0:00:06]}  Kf6 {[%clk 0:00:22]} 33. Kd4 {[%clk 0:00:03]}  Kf5 {[%clk 0:00:21]} 34. Ke3 {[%clk 0:00:04]}  Bf7 {[%clk 0:00:20]} 35. c5 {[%clk 0:00:04]}  Bd5 {[%clk 0:00:20]} 0-1


[Site "https://www.chess.com"]